{"text_format":"1","workbook":"xlsx","n_sheets":2,"sheets":["Indiv. Contr. Sec3","Drop-Down Options"],"not_rendered":{"charts":0,"images":0,"macros":0,"external_links":0,"defined_names":9,"comments":1,"pivot_tables":0},"unopened":[],"bounds":{"document_bytes":16777216,"sheet_cells":100000,"rows_first":2000,"rows_last":500,"rows_between":2000,"halvings":0,"cell_chars":16384,"cell_head_chars":4096},"cells_cut":0,"cells_raw":0,"read":"whole","date_system":"1900"}

{"sheet":"Indiv. Contr. Sec3","index":0,"n_rows":106,"n_cols":30,"rows_kept":106,"cut":false,"hidden":false,"merged":[[101,7,101,19],[103,1,104,2],[105,1,106,29],[81,20,90,20],[91,20,101,20],[89,24,89,29],[90,24,90,29],[100,24,100,29],[60,20,60,23],[61,20,61,23],[101,24,101,29],[89,4,90,4],[93,4,94,4],[93,6,94,19],[89,6,90,19],[60,29,65,29],[70,24,70,26],[74,24,74,26],[75,24,75,26],[76,24,76,26],[77,24,77,26],[71,24,71,26],[72,24,72,26],[73,24,73,26],[70,22,70,23],[70,17,70,19],[65,10,65,13],[66,10,66,13],[67,10,67,13],[68,10,68,13],[60,27,65,27],[70,14,70,16],[62,14,62,16],[63,14,63,16],[66,20,66,23],[67,20,67,23],[68,20,68,23],[69,20,69,23],[62,17,62,19],[63,17,63,19],[64,17,64,19],[68,24,68,26],[69,24,69,26],[64,14,64,16],[65,14,65,16],[68,14,68,16],[66,14,66,16],[67,14,67,16],[42,24,42,26],[43,24,43,26],[60,28,65,28],[43,28,43,29],[44,28,44,29],[45,28,45,29],[54,28,54,29],[55,28,55,29],[56,28,56,29],[59,24,59,26],[60,24,60,26],[61,24,61,26],[56,24,56,26],[57,24,57,26],[58,24,58,26],[53,24,53,26],[54,24,54,26],[55,24,55,26],[63,24,63,26],[64,24,64,26],[65,24,65,26],[50,24,50,26],[51,24,51,26],[52,24,52,26],[42,14,42,16],[47,17,47,19],[48,17,48,19],[49,17,49,19],[50,17,50,19],[51,17,51,19],[43,14,43,16],[34,28,34,29],[33,28,33,29],[36,28,36,29],[37,28,37,29],[38,28,38,29],[39,28,39,29],[40,28,40,29],[41,28,41,29],[42,28,42,29],[41,17,41,19],[38,20,38,23],[39,20,39,23],[40,20,40,23],[41,20,41,23],[42,20,42,23],[43,20,43,23],[38,24,38,26],[29,20,29,21],[36,14,36,16],[37,14,37,16],[38,14,38,16],[39,14,39,16],[40,14,40,16],[41,14,41,16],[34,20,34,23],[35,20,35,23],[36,20,36,23],[33,20,33,26],[34,24,34,26],[35,24,35,26],[36,24,36,26],[37,24,37,26],[37,20,37,23],[40,17,40,19],[39,24,39,26],[40,24,40,26],[41,24,41,26],[27,20,27,21],[28,20,28,21],[33,10,33,13],[34,10,34,13],[59,10,59,13],[60,10,60,13],[61,10,61,13],[62,10,62,13],[63,10,63,13],[27,11,27,13],[28,11,28,13],[53,17,53,19],[54,17,54,19],[55,17,55,19],[27,14,27,16],[28,14,28,16],[29,14,29,16],[27,17,27,19],[28,17,28,19],[29,17,29,19],[46,14,46,16],[47,14,47,16],[48,14,48,16],[49,14,49,16],[70,7,70,9],[62,24,62,26],[34,14,34,16],[35,14,35,16],[64,10,64,13],[70,10,70,13],[50,14,50,16],[51,14,51,16],[52,14,52,16],[53,14,53,16],[35,9,69,9],[68,17,68,19],[66,17,66,19],[67,17,67,19],[69,17,69,19],[65,17,65,19],[66,24,66,26],[67,24,67,26],[56,14,56,16],[57,14,57,16],[58,14,58,16],[60,14,60,16],[61,14,61,16],[69,14,69,16],[61,1,61,7],[56,17,56,19],[57,17,57,19],[58,17,58,19],[59,17,59,19],[59,14,59,16],[64,1,64,7],[65,1,65,7],[52,17,52,19],[13,20,14,25],[60,17,60,19],[61,17,61,19],[62,20,62,23],[63,20,63,23],[64,20,64,23],[65,20,65,23],[27,3,27,6],[28,3,28,6],[33,3,33,6],[54,14,54,16],[55,14,55,16],[17,2,17,6],[59,20,59,23],[43,1,43,7],[44,1,44,7],[45,1,45,7],[46,1,46,7],[47,1,47,7],[48,1,48,7],[49,1,49,7],[50,1,50,7],[51,1,51,7],[60,1,60,7],[25,1,25,2],[27,1,27,2],[28,1,28,2],[29,3,29,6],[29,11,29,13],[41,1,41,7],[42,1,42,7],[34,1,34,7],[35,1,35,7],[36,1,36,7],[42,10,42,13],[41,10,41,13],[40,10,40,13],[39,10,39,13],[38,10,38,13],[37,10,37,13],[36,10,36,13],[35,10,35,13],[37,1,37,7],[38,1,38,7],[39,1,39,7],[40,1,40,7],[1,1,1,28],[3,2,3,6],[7,11,7,16],[10,11,10,16],[6,8,8,10],[9,8,11,10],[5,8,5,10],[6,6,8,7],[9,6,11,7],[3,27,3,29],[5,26,5,29],[3,18,3,26],[7,20,8,25],[7,26,8,29],[10,20,11,25],[10,26,11,29],[4,12,5,16],[70,1,70,2],[71,1,71,2],[75,1,75,2],[91,21,91,29],[79,22,80,29],[3,16,3,17],[3,7,3,15],[23,6,23,29],[34,27,58,27],[32,8,32,29],[31,8,31,29],[29,1,29,2],[27,22,27,25],[28,22,28,25],[29,22,29,25],[24,20,24,21],[25,20,26,21],[25,8,26,10],[27,8,27,10],[28,8,28,10],[29,8,29,10],[24,8,24,10],[62,1,62,7],[63,1,63,7],[45,10,45,13],[44,10,44,13],[43,10,43,13],[17,0,17,1],[3,0,3,1],[19,0,19,1],[19,2,19,6],[5,20,5,25],[25,27,26,27],[24,3,24,6],[25,3,26,6],[25,7,26,7],[25,11,26,13],[24,11,24,13],[24,17,24,19],[25,26,26,26],[24,22,24,25],[25,22,26,25],[25,14,26,16],[24,14,24,16],[25,17,26,19],[13,26,14,29],[26,1,26,2],[24,1,24,2],[46,17,46,19],[52,10,52,13],[51,10,51,13],[50,10,50,13],[49,10,49,13],[48,10,48,13],[47,10,47,13],[46,10,46,13],[69,10,69,13],[58,10,58,13],[57,10,57,13],[56,10,56,13],[55,10,55,13],[54,10,54,13],[53,10,53,13],[47,20,47,23],[52,1,52,7],[53,1,53,7],[54,1,54,7],[55,1,55,7],[56,1,56,7],[57,1,57,7],[58,1,58,7],[59,1,59,7],[48,20,48,23],[49,20,49,23],[47,24,47,26],[48,24,48,26],[49,24,49,26],[44,24,44,26],[45,24,45,26],[46,24,46,26],[33,14,33,19],[42,17,42,19],[34,17,34,19],[35,17,35,19],[36,17,36,19],[37,17,37,19],[38,17,38,19],[39,17,39,19],[45,17,45,19],[44,14,44,16],[45,14,45,16],[43,17,43,19],[44,17,44,19],[44,20,44,23],[45,20,45,23],[46,20,46,23],[58,20,58,23],[50,20,50,23],[51,20,51,23],[52,20,52,23],[53,20,53,23],[54,20,54,23],[55,20,55,23],[56,20,56,23],[57,20,57,23]]}
[]
[null,"INDIVIDUAL CONTRACTOR'S SEMI-ANNUAL SECTION 3 REPORT"]
[]
["Grantee/UGLG Name:",null,"(Grantee's Name)",null,null,null,null,"Grant AWARDED to UGLG Before or After 11/30/2020?",null,null,null,null,null,null,null,null,"Not Answered",null,"DEHCR Grant Agreement/Contract Number:",null,null,null,null,null,null,null,null,"(Grant Agreement #)"]
[]
[null,"Reporting Period (Choose ONE):",null,null,"X",null,null,null,"Year",null,null,null,null,null,null,null,null,null,null,null,"Preparer's Name:"]
[null,null,null,null,null,null,"October 1 - March 31"]
[null,null,null,null,null,null,null,null,null,null,null,null,null,null,null,null,null,null,null,null,"Preparer's Title:"]
[]
[null,null,null,null,null,null,"April 1 - September 30",null,2021]
[null,null,null,null,null,null,null,null,null,null,null,null,null,null,null,null,null,null,null,null,"Preparer's Phone No.:"]
[]
[]
[null,null,null,null,null,null,null,null,null,null,null,null,null,null,null,null,null,null,null,null,"Preparer's Email:"]
[]
[]
[]
["Contractor's Name:",null,"(Contractor's Name)"]
[]
["Date Completed:",null,"(Date Reported/Submitted)"]
[]
[]
[" "]
[null,"PART 6.  SECTION 3 - NEW HIRING ",null,null,null,null,{"$f":"IF(A25>0,\"This PART 6 section (below) does not apply to your CDBG project.  Please proceed (i.e. skip) to PART 7 to continue entering data.\",\" \")","v":" "}]
[{"$f":"IF($Q$4=\"On or After\",1,0)","v":0},"6(a)",null,"6(b)",null,null,null,"6(c) ","6(d) ",null,null,"6(e) ",null,null,"6(f) ",null,null,"6(g) ",null,null,"6(h) ",null,"6(i) ",null,null,null,"6(j) ","6(k) ","6(l) ","6(m) "]
[{"$f":"IF($Q$4=\"On or After\",1,0)","v":0},"New Hiring",null,"Professionals",null,null,null,"Clerical","Case Management",null,null,"Facilities / Maintenance",null,null,"Technical (Bookkeeping,                         IT, etc.)",null,null,"Carpentry",null,null,"Masonry",null,"Plumbing",null,null,null,"Electrical","Admin.","Other:","Other:"]
[0,"(Include # of Full-Time New Hires working on this CDBG Project Only)",null,null,null,null,null,null,null,null,null,null,null,null,null,null,null,null,null,null,null,null,null,null,null,null,null,null,"(Specify Job TYPE Here.)","(Specify Job TYPE Here.)"]
[0,"# of New Hires",null,0,null,null,null,0,0,null,null,0,null,null,0,null,null,0,null,null,0,null,0,null,null,null,0,0,0,0]
[0,"# of Section 3 New Hires",null,0,null,null,null,0,0,null,null,0,null,null,0,null,null,0,null,null,0,null,0,null,null,null,0,0,0,0]
[0,"# of Section 3 Trainees",null,0,null,null,null,0,0,null,null,0,null,null,0,null,null,0,null,null,0,null,0,null,null,null,0,0,0,0]
[]
[null,null,null,null,null,null,null,null,{"$f":"IF(I34>0,\"This PART 7 section (below) does not apply to your CDBG project.\",\" \")","v":" "}]
[null,"PART 7.  SECTION 3 - WORKER HOURS ON THIS CDBG PROJECT",null,null,null,null,null,null,{"$f":"IF(I34>0,\"Please proceed (i.e. skip) to PART 8 to continue entering data.\",\" \")","v":" "}]
[null,null,null,null,null,null,null,null,{"$f":"IF($Q$4=\"Before\",1,0)","v":0},null,"7(b)",null,null,null,"7(c)",null,null,null,null,null,"7(d)"]
[null,"List ALL of the individual employees that have worked on (i.e. performed billable work hours on) this project during the 6-month reporting period (shown above).",null,null,null,null,null,null,{"$f":"IF($Q$4=\"Before\",1,0)","v":0},null,"Total of ALL Hours Worked by this Individual on the CDBG Project During the Reporting Period",null,null,null,"Is this a Section 3 Worker?                          (Yes or No)",null,null,"Total Hours Worked as a SECTION 3 Worker on this CDBG Project",null,null,"Is this a Targeted Section 3 Worker?                          (Yes or No)",null,null,null,"Total Hours Worked as a TARGETED SECTION 3 Worker"]
[null,"EXAMPLE:  Susan J. Smith",null,null,null,null,null,null,0,null,"45",null,null,null,"Yes",null,null,45,null,null,"Yes",null,null,null,50]
[1,null,null,null,null,null,null,null,0,null,3,null,null,null,"Not Answered",null,null,{"$f":"IF(O37='Drop-Down Options'!$C$4,K37,0)","v":0},null,null,"Not Answered",null,null,null,{"$f":"IF(U37='Drop-Down Options'!$C$4,K37,0)","v":0}]
[2,null,null,null,null,null,null,null,0,null,0,null,null,null,"Not Answered",null,null,{"$f":"IF(O38='Drop-Down Options'!$C$4,K38,0)","v":0},null,null,"Not Answered",null,null,null,{"$f":"IF(U38='Drop-Down Options'!$C$4,K38,0)","v":0}]
[3,null,null,null,null,null,null,null,0,null,0,null,null,null,"Not Answered",null,null,{"$f":"IF(O39='Drop-Down Options'!$C$4,K39,0)","v":0},null,null,"Not Answered",null,null,null,{"$f":"IF(U39='Drop-Down Options'!$C$4,K39,0)","v":0}]
[4,null,null,null,null,null,null,null,0,null,0,null,null,null,"Not Answered",null,null,{"$f":"IF(O40='Drop-Down Options'!$C$4,K40,0)","v":0},null,null,"Not Answered",null,null,null,{"$f":"IF(U40='Drop-Down Options'!$C$4,K40,0)","v":0}]
[5,null,null,null,null,null,null,null,0,null,0,null,null,null,"Not Answered",null,null,{"$f":"IF(O41='Drop-Down Options'!$C$4,K41,0)","v":0},null,null,"Not Answered",null,null,null,{"$f":"IF(U41='Drop-Down Options'!$C$4,K41,0)","v":0}]
[6,null,null,null,null,null,null,null,0,null,0,null,null,null,"Not Answered",null,null,{"$f":"IF(O42='Drop-Down Options'!$C$4,K42,0)","v":0},null,null,"Not Answered",null,null,null,{"$f":"IF(U42='Drop-Down Options'!$C$4,K42,0)","v":0}]
[7,null,null,null,null,null,null,null,0,null,0,null,null,null,"Not Answered",null,null,{"$f":"IF(O43='Drop-Down Options'!$C$4,K43,0)","v":0},null,null,"Not Answered",null,null,null,{"$f":"IF(U43='Drop-Down Options'!$C$4,K43,0)","v":0}]
[8,null,null,null,null,null,null,null,0,null,0,null,null,null,"Not Answered",null,null,{"$f":"IF(O44='Drop-Down Options'!$C$4,K44,0)","v":0},null,null,"Not Answered",null,null,null,{"$f":"IF(U44='Drop-Down Options'!$C$4,K44,0)","v":0}]
[9,null,null,null,null,null,null,null,0,null,0,null,null,null,"Not Answered",null,null,{"$f":"IF(O45='Drop-Down Options'!$C$4,K45,0)","v":0},null,null,"Not Answered",null,null,null,{"$f":"IF(U45='Drop-Down Options'!$C$4,K45,0)","v":0}]
[10,null,null,null,null,null,null,null,{"$f":"IF($Q$4=\"Before\",1,0)","v":0},null,0,null,null,null,"Not Answered",null,null,{"$f":"IF(O46='Drop-Down Options'!$C$4,K46,0)","v":0},null,null,"Not Answered",null,null,null,{"$f":"IF(U46='Drop-Down Options'!$C$4,K46,0)","v":0}]
[11,null,null,null,null,null,null,null,0,null,0,null,null,null,"Not Answered",null,null,{"$f":"IF(O47='Drop-Down Options'!$C$4,K47,0)","v":0},null,null,"Not Answered",null,null,null,{"$f":"IF(U47='Drop-Down Options'!$C$4,K47,0)","v":0}]
[12,null,null,null,null,null,null,null,0,null,0,null,null,null,"Not Answered",null,null,{"$f":"IF(O48='Drop-Down Options'!$C$4,K48,0)","v":0},null,null,"Not Answered",null,null,null,{"$f":"IF(U48='Drop-Down Options'!$C$4,K48,0)","v":0}]
[13,null,null,null,null,null,null,null,0,null,0,null,null,null,"Not Answered",null,null,{"$f":"IF(O49='Drop-Down Options'!$C$4,K49,0)","v":0},null,null,"Not Answered",null,null,null,{"$f":"IF(U49='Drop-Down Options'!$C$4,K49,0)","v":0}]
[14,null,null,null,null,null,null,null,0,null,0,null,null,null,"Not Answered",null,null,{"$f":"IF(O50='Drop-Down Options'!$C$4,K50,0)","v":0},null,null,"Not Answered",null,null,null,{"$f":"IF(U50='Drop-Down Options'!$C$4,K50,0)","v":0}]
[15,null,null,null,null,null,null,null,0,null,0,null,null,null,"Not Answered",null,null,{"$f":"IF(O51='Drop-Down Options'!$C$4,K51,0)","v":0},null,null,"Not Answered",null,null,null,{"$f":"IF(U51='Drop-Down Options'!$C$4,K51,0)","v":0}]
[16,null,null,null,null,null,null,null,0,null,0,null,null,null,"Not Answered",null,null,{"$f":"IF(O52='Drop-Down Options'!$C$4,K52,0)","v":0},null,null,"Not Answered",null,null,null,{"$f":"IF(U52='Drop-Down Options'!$C$4,K52,0)","v":0}]
[17,null,null,null,null,null,null,null,0,null,0,null,null,null,"Not Answered",null,null,{"$f":"IF(O53='Drop-Down Options'!$C$4,K53,0)","v":0},null,null,"Not Answered",null,null,null,{"$f":"IF(U53='Drop-Down Options'!$C$4,K53,0)","v":0}]
[18,null,null,null,null,null,null,null,0,null,0,null,null,null,"Not Answered",null,null,{"$f":"IF(O54='Drop-Down Options'!$C$4,K54,0)","v":0},null,null,"Not Answered",null,null,null,{"$f":"IF(U54='Drop-Down Options'!$C$4,K54,0)","v":0}]
[19,null,null,null,null,null,null,null,0,null,0,null,null,null,"Not Answered",null,null,{"$f":"IF(O55='Drop-Down Options'!$C$4,K55,0)","v":0},null,null,"Not Answered",null,null,null,{"$f":"IF(U55='Drop-Down Options'!$C$4,K55,0)","v":0}]
[20,null,null,null,null,null,null,null,0,null,0,null,null,null,"Not Answered",null,null,{"$f":"IF(O56='Drop-Down Options'!$C$4,K56,0)","v":0},null,null,"Not Answered",null,null,null,{"$f":"IF(U56='Drop-Down Options'!$C$4,K56,0)","v":0}]
[21,null,null,null,null,null,null,null,0,null,0,null,null,null,"Not Answered",null,null,{"$f":"IF(O57='Drop-Down Options'!$C$4,K57,0)","v":0},null,null,"Not Answered",null,null,null,{"$f":"IF(U57='Drop-Down Options'!$C$4,K57,0)","v":0}]
[22,null,null,null,null,null,null,null,0,null,0,null,null,null,"Not Answered",null,null,{"$f":"IF(O58='Drop-Down Options'!$C$4,K58,0)","v":0},null,null,"Not Answered",null,null,null,{"$f":"IF(U58='Drop-Down Options'!$C$4,K58,0)","v":0}]
[23,null,null,null,null,null,null,null,0,null,0,null,null,null,"Not Answered",null,null,{"$f":"IF(O59='Drop-Down Options'!$C$4,K59,0)","v":0},null,null,"Not Answered",null,null,null,{"$f":"IF(U59='Drop-Down Options'!$C$4,K59,0)","v":0}]
[24,null,null,null,null,null,null,null,0,null,0,null,null,null,"Not Answered",null,null,{"$f":"IF(O60='Drop-Down Options'!$C$4,K60,0)","v":0},null,null,"Not Answered",null,null,null,{"$f":"IF(U60='Drop-Down Options'!$C$4,K60,0)","v":0}]
[25,null,null,null,null,null,null,null,0,null,0,null,null,null,"Not Answered",null,null,{"$f":"IF(O61='Drop-Down Options'!$C$4,K61,0)","v":0},null,null,"Not Answered",null,null,null,{"$f":"IF(U61='Drop-Down Options'!$C$4,K61,0)","v":0}]
[26,null,null,null,null,null,null,null,0,null,0,null,null,null,"Not Answered",null,null,{"$f":"IF(O62='Drop-Down Options'!$C$4,K62,0)","v":0},null,null,"Not Answered",null,null,null,{"$f":"IF(U62='Drop-Down Options'!$C$4,K62,0)","v":0}]
[27,null,null,null,null,null,null,null,0,null,0,null,null,null,"Not Answered",null,null,{"$f":"IF(O63='Drop-Down Options'!$C$4,K63,0)","v":0},null,null,"Not Answered",null,null,null,{"$f":"IF(U63='Drop-Down Options'!$C$4,K63,0)","v":0}]
[28,null,null,null,null,null,null,null,0,null,0,null,null,null,"Not Answered",null,null,{"$f":"IF(O64='Drop-Down Options'!$C$4,K64,0)","v":0},null,null,"Not Answered",null,null,null,{"$f":"IF(U64='Drop-Down Options'!$C$4,K64,0)","v":0}]
[29,null,null,null,null,null,null,null,0,null,0,null,null,null,"Not Answered",null,null,{"$f":"IF(O65='Drop-Down Options'!$C$4,K65,0)","v":0},null,null,"Not Answered",null,null,null,{"$f":"IF(U65='Drop-Down Options'!$C$4,K65,0)","v":0}]
[30,null,null,null,null,null,null,null,0,null,0,null,null,null,"Not Answered",null,null,{"$f":"IF(O66='Drop-Down Options'!$C$4,K66,0)","v":0},null,null,"Not Answered",null,null,null,{"$f":"IF(U66='Drop-Down Options'!$C$4,K66,0)","v":0}]
[null,null,null,null,null,null,null,null,0,null,0,null,null,null,"Not Answered",null,null,{"$f":"IF(O67='Drop-Down Options'!$C$4,K67,0)","v":0},null,null,"Not Answered",null,null,null,{"$f":"IF(U67='Drop-Down Options'!$C$4,K67,0)","v":0}]
["HUD Benchmarks:",null,null,null,null,null,null,null,0,null,0,null,null,null,"Not Answered",null,null,{"$f":"IF(O68='Drop-Down Options'!$C$4,K68,0)","v":0},null,null,"Not Answered",null,null,null,{"$f":"IF(U68='Drop-Down Options'!$C$4,K68,0)","v":0}]
[null,null,null,null,null,null,null,null,0,null,0,null,null,null,"Not Answered",null,null,{"$f":"IF(O69='Drop-Down Options'!$C$4,K69,0)","v":0},null,null,"Not Answered",null,null,null,{"$f":"IF(U69='Drop-Down Options'!$C$4,K69,0)","v":0}]
[1,"25% or more of ALL labor hours must be worked by Section 3 Workers.",null,null,null,null,null,null,0,null,0,null,null,null,"Not Answered",null,null,{"$f":"IF(O70='Drop-Down Options'!$C$4,K70,0)","v":0},null,null,"Not Answered",null,null,null,{"$f":"IF(U70='Drop-Down Options'!$C$4,K70,0)","v":0}]
[null,"Percentage all labor ",null,null,null,null,null,"Total(s):",null,null,{"$f":"SUM(K37:N70)","v":3},null,null,null,null,null,null,{"$f":"SUM(R37:T70)","v":0},null,null,null,null,null,null,{"$f":"SUM(Y37:AA70)","v":0}]
[null,"hours worked by Sec3",null,null,"=",null,{"$f":"R71/K71","v":0},null,0]
[2,"5% or more of ALL labor hours must be worked by Targeted Section 3 Workers.",null,null,null,null,null,null,0]
[null,"Percentage all labor",null,null,null,null,null,null,0]
[null,"hours worked by",null,null,null,null,null,null,0]
[null,"Targeted Sec3 workers",null,null,"=",null,{"$f":"Y71/K71","v":0},null,0]
[null,null,null,null,null,null,null,null,0]
[null,null,null,null,null,null,null,null,0]
[null,"PART 8.  SECTION 3 - OUTREACH/PROMOTION & BEST EFFORTS"]
[{"$f":"IF($Q$4=\"On or After\",1,IF($Q$4=\"Before\",2,0))","v":0},null,null,null,null,null,null,null,null,null,null,null,null,null,null,null,null,null,null,null,null,null,"Check ALL that apply.  Maintain records and make available for HUD to review documentation of any efforts checked."]
[{"$f":"IF($Q$4=\"On or After\",1,IF($Q$4=\"Before\",2,0))","v":0},null,null,null,"\"X\"","Check ALL that apply.  Maintain records & make available for HUD to review documentation of any efforts marked.",null,null,null,null,null,null,null,null,null,null,null,null,null,null,null,"\"X\""]
[0,null,null,null,null,null,"Outreach efforts to generate job applicants who are Public Housing Targeted Workers.",null,null,null,null,null,null,null,null,null,null,null,null,null,"HIRING    Efforts",null,"No New Hiring occurred during reporting period."]
[0,null,null,null,null,null,"Outreach efforts to generate job applicants who are Other Funding Targeted Workers.",null,null,null,null,null,null,null,null,null,null,null,null,null,null,null,"Job Posting(s) at local Job Center."]
[0,null,null,null,null,null,"Direct, on-the-job training (including apprenticeships).",null,null,null,null,null,null,null,null,null,null,null,null,null,null,null,"Job Posting(s) at local Housing Authority."]
[0,null,null,null,null,null,"Indirect training such as arranging for, contracting for, or paying tuition for, off-site training.",null,null,null,null,null,null,null,null,null,null,null,null,null,null,null,"Job Posting(s) in local Newspaper/Media Publication in LMI Community."]
[0,null,null,null,null,null,"Technical assistance to help Section 3 workers compete for jobs (e.g., resume assistance, coaching, etc.).",null,null,null,null,null,null,null,null,null,null,null,null,null,null,null,"Job Posting(s) at central location(s) in LMI Community."]
[0,null,null,null,null,null,"Outreach efforts to identify and secure bids from Section 3 business concerns.",null,null,null,null,null,null,null,null,null,null,null,null,null,null,null,"Job Posting(s) on Municipal Website in LMI Community."]
[0,null,null,null,null,null,"Technical assistance to help Section 3 business concerns understand and bid on contracts.",null,null,null,null,null,null,null,null,null,null,null,null,null,null,null,"Job Posting(s) at Technical College(s)."]
[0,null,null,null,null,null,"Division of contracts into smaller jobs to facilitate participation by Section 3 business concerns.",null,null,null,null,null,null,null,null,null,null,null,null,null,null,null,"Section 3 Clause Notice given to local Labor Union(s)."]
[0,null,null,null,null,null,"Provided or connected residents with assistance in seeking employment including:  drafting resumes, preparing for interviews, finding job opportunities, connecting residents to job placement services.",null,null,null,null,null,null,null,null,null,null,null,null,null,null,null,"Other:",null,"[Describe/specify here.]"]
[0,null,null,null,null,null,null,null,null,null,null,null,null,null,null,null,null,null,null,null,null,null,"Other:",null,"[Describe/specify here.]"]
[0,null,null,null,null,null,"Held one or more job fairs.",null,null,null,null,null,null,null,null,null,null,null,null,null,"CONTRACTING    Efforts"]
[0,null,null,null,null,null,"Provided or connected residents with supportive services that can provide direct services or referrals.",null,null,null,null,null,null,null,null,null,null,null,null,null,null,null,"No New Contracting during reporting period."]
[0,null,null,null,null,null,"Provided or connected residents with supportive services that provide one or more of the following:  work readiness health screenings, interview clothing, uniforms, test fees, transportation.",null,null,null,null,null,null,null,null,null,null,null,null,null,null,null,"Section 3 Clause in Procurement Solicitation(s)."]
[0,null,null,null,null,null,null,null,null,null,null,null,null,null,null,null,null,null,null,null,null,null,"Section 3 Clause in Contract(s)."]
[0,null,null,null,null,null,"Assisted residents with finding child care.",null,null,null,null,null,null,null,null,null,null,null,null,null,null,null,"Outreach to Disadvantaged Businesses."]
[0,null,null,null,null,null,"Assisted residents to apply for (or attend) community college or a four (4) year educational institution.",null,null,null,null,null,null,null,null,null,null,null,null,null,null,null,"Procurement Solicitation(s) in Local Newspaper in LMI Community."]
[0,null,null,null,null,null,"Assisted residents to apply for (or attend) vocational/technical training.",null,null,null,null,null,null,null,null,null,null,null,null,null,null,null,"Procurement Solicitation(s) at central location(s) in LMI Community."]
[0,null,null,null,null,null,"Assisted residents to obtain financial literacy training and/or coaching.",null,null,null,null,null,null,null,null,null,null,null,null,null,null,null,"Procurement Solicitation(s) on Municipal Website in LMI Community."]
[0,null,null,null,null,null,"Bonding assistance, guaranties, or other efforts to support viable bids from Section 3 business concerns.",null,null,null,null,null,null,null,null,null,null,null,null,null,null,null,"Procurement Solicitation Published on State of WI VendorNet."]
[0,null,null,null,null,null,"Provided or connected residents with training on computer use or online technologies.",null,null,null,null,null,null,null,null,null,null,null,null,null,null,null,"Other:",null,"[Describe/specify here.]"]
[0,null,null,null,null,null,"Other:","[Describe/specify here.]",null,null,null,null,null,null,null,null,null,null,null,null,null,null,"Other:",null,"[Describe/specify here.]"]
[]
[null,"PART 9.  COMMENTS"]
[]
[null,"[Provide additional comments/explanations here.]   "]

{"sheet":"Drop-Down Options","index":1,"n_rows":13,"n_cols":7,"rows_kept":13,"cut":false,"hidden":false,"merged":[]}
[]
["Trade Code(s):","Racial / Ethnic Code(s):","Yes / No:","Yes / No / Not Applicable:","HUD / DOL / Both","Investigation / Hearing / Both","Grant Award Date"]
["Not Answered","Not Answered","Not Answered","Not Answered","Not Answered","Not Answered","Not Answered"]
[1,1,"Yes","Yes","HUD","Investigation","Before"]
[2,2,"No","No","DOL","Hearing","On or After"]
[3,3,null,"Not Applicable","Both","Both"]
[4,4]
[5,5]
[6,6]
[7]
[8]
[9]
[0]